bitfinex-derivatives/quotes_BTCF0:USTF0_20240815
["timestamp","ask_amount","ask_price","bid_price","bid_amount"]
[1723690465768,0.013,58483.0,58482.0,0.67080108]
[1723690466460,0.013,58483.0,58482.0,0.72137822]
[1723690466665,0.013,58483.0,58482.0,0.67080108]
[1723690471859,0.123,58483.0,58482.0,0.67080108]
[1723690474767,0.123,58483.0,58482.0,0.31000108]
[1723690475074,0.123,58483.0,58482.0,1.03160108]
[1723690475265,0.123,58483.0,58482.0,0.31000108]
[1723690475467,0.123,58483.0,58482.0,1.03160108]
[1723690477274,0.123,58483.0,58482.0,0.67080108]
[1723690478379,0.123,58483.0,58482.0,0.31000108]
[1723690478573,0.123,58483.0,58482.0,0.67080108]
[1723690479572,0.123,58483.0,58482.0,0.31000108]
[1723690479876,0.123,58483.0,58482.0,0.67080108]
[1723690483374,0.123,58483.0,58482.0,0.31000108]
[1723690483579,0.123,58483.0,58482.0,0.67080108]
[1723690490388,0.123,58483.0,58482.0,0.31000108]
[1723690490686,0.123,58483.0,58482.0,0.67080108]
[1723690493885,0.123,58483.0,58482.0,0.52880108]
[1723690498885,0.123,58483.0,58482.0,0.07340108]
[1723690499093,0.059842,58478.0,58470.0,0.3608]
[1723690499282,0.059849,58471.0,58470.0,0.420649]
[1723690499478,0.314449,58471.0,58470.0,0.420649]
[1723690499683,0.219849,58471.0,58470.0,0.420649]
[1723690500294,0.219849,58471.0,58470.0,0.425649]
[1723690500790,0.16,58471.0,58470.0,0.425649]
[1723690502695,0.1577434,58471.0,58470.0,0.68307294]
[1723690503186,0.1577434,58471.0,58470.0,0.74292294]
[1723690503490,0.1577434,58471.0,58470.0,0.88952294]
[1723690503679,0.1577434,58471.0,58470.0,1.80260294]
[1723690505084,0.1577434,58471.0,58470.0,1.91661592]
[1723690505285,0.1577434,58471.0,58470.0,1.61822542]
[1723690505685,0.1577434,58471.0,58470.0,1.51661592]
[1723690506293,0.1577434,58471.0,58470.0,2.02202903]
[1723690507799,0.0117577,58488.0,58487.0,0.059833]
[1723690508099,0.1702566,58488.0,58487.0,0.059833]
[1723690509091,0.1842566,58488.0,58487.0,0.11066266]
[1723690509299,0.1842566,58488.0,58487.0,0.059833]
[1723690509691,0.1862566,58488.0,58487.0,0.11166266]
[1723690511199,0.1862566,58488.0,58487.0,0.060833]
[1723690519700,1.2188406,58488.0,58487.0,0.001]
[1723690519903,1.4599766,58488.0,58482.0,0.0002566]
[1723690520101,0.119676,58482.0,58481.0,0.06777288]
[1723690520307,0.269676,58482.0,58481.0,0.06777288]
[1723690520509,0.059843,58477.0,58476.0,0.0846888]
[1723690520709,0.580643,58477.0,58476.0,0.0846888]
[1723690522308,0.585643,58477.0,58476.0,0.0846888]
[1723690522911,0.588643,58477.0,58476.0,0.0846888]
[1723690523111,1.501683,58477.0,58476.0,0.0846888]
[1723690524003,0.059848,58472.0,58471.0,0.0002566]
[1723690524307,0.630496,58472.0,58471.0,6e-07]
[1723690524504,1.543576,58472.0,58471.0,6e-07]
[1723690525209,0.059849,58471.0,58459.0,0.059861]
[1723690525415,0.3608,58460.0,58457.0,0.13079228]
[1723690525713,0.5308,58460.0,58457.0,0.13079228]
[1723690526013,0.059861,58459.0,58457.0,0.13079228]
[1723690526211,0.059862,58458.0,58457.0,0.13079228]
[1723690526517,0.229862,58458.0,58457.0,0.13079228]
[1723690526707,0.229862,58458.0,58457.0,0.13279228]
[1723690528114,0.229862,58458.0,58457.0,0.13079228]
[1723690528308,0.229862,58458.0,58457.0,0.13379228]
[1723690531611,0.17,58458.0,58457.0,0.19365528]
[1723690532506,0.17,58458.0,58457.0,0.55445528]
[1723690532705,0.17,58458.0,58457.0,0.423663]
[1723690535812,0.0202566,58464.0,58463.0,0.059857]
[1723690536116,0.5210566,58464.0,58463.0,0.059857]
[1723690536307,0.5210566,58464.0,58459.0,0.059861]
[1723690536708,0.05986,58461.0,58460.0,0.05986]
[1723690536910,0.22986,58461.0,58460.0,0.05986]
[1723690537117,0.17,58461.0,58457.0,0.003]
[1723690537416,0.420661,58459.0,58453.0,0.25083365]
[1723690537722,0.570661,58459.0,58453.0,0.25083365]
[1723690538019,0.570661,58459.0,58456.0,0.059863]
[1723690538412,0.570661,58459.0,58457.0,0.003]
[1723690538713,0.571661,58459.0,58457.0,0.003]
[1723690539015,0.571661,58459.0,58456.0,0.059863]
[1723690539212,0.570661,58459.0,58456.0,0.063863]
[1723690540319,0.570661,58459.0,58457.0,0.059863]
[1723690540711,0.059863,58457.0,58456.0,0.004]
[1723690540912,0.209863,58457.0,58453.0,0.23944]
[1723690541214,0.059865,58456.0,58453.0,0.23944]
[1723690541419,0.059867,58453.0,58452.0,0.0002566]
[1723690541715,0.219867,58453.0,58452.0,0.0002566]
[1723690541922,1.369607,58453.0,58452.0,0.0002566]
[1723690542119,1.528707,58453.0,58452.0,0.0002566]
[1723690542420,0.05987,58450.0,58444.0,0.1694043]
[1723690542618,0.05987,58450.0,58443.0,0.420677]
[1723690542619,0.059875,58446.0,58443.0,0.059877]
[1723690542826,0.560675,58446.0,58443.0,0.059877]
[1723690543421,0.059879,58442.0,58439.0,0.01107518]
[1723690543620,0.219879,58442.0,58436.0,0.4525]
[1723690543810,0.219879,58442.0,58439.0,0.0002566]
[1723690544323,0.219879,58442.0,58440.0,0.05988]
[1723690544716,0.220879,58442.0,58441.0,0.05988]
[1723690545416,0.219879,58442.0,58441.0,0.05988]
[1723690545621,0.220879,58442.0,58441.0,0.05988]
[1723690545823,0.221879,58442.0,58441.0,0.05988]
[1723690546219,0.162,58442.0,58441.0,0.05988]
[1723690547222,0.162,58442.0,58441.0,0.07388]
[1723690547421,0.5228,58442.0,58441.0,0.07388]
[1723690550630,0.162,58442.0,58441.0,0.07388]
[1723690550832,0.5228,58442.0,58441.0,0.07388]
[1723690551523,0.162,58442.0,58441.0,0.07388]
[1723690553529,0.162,58442.0,58441.0,0.13376]
[1723690554039,0.27463671,58455.0,58449.0,0.059871]
[1723690554326,0.27463671,58455.0,58449.0,0.420671]
[1723690554726,0.27463671,58455.0,58449.0,0.887171]
[1723690554927,0.059856,58464.0,58449.0,1.860322]
[1723690555120,0.0012566,58450.0,58449.0,2.05679982]
[1723690555323,0.0012566,58450.0,58449.0,1.65679982]
[1723690556134,0.0002566,58450.0,58449.0,1.65679982]
[1723690556333,0.0012566,58450.0,58449.0,1.65679982]
[1723690556731,0.1112566,58450.0,58441.0,0.3608]
[1723690556937,0.1711266,58450.0,58449.0,0.006]
[1723690557127,0.1112566,58450.0,58449.0,0.006]
[1723690557322,0.1112566,58450.0,58449.0,0.065871]
[1723690557627,0.1112566,58450.0,58449.0,0.070871]
[1723690558030,0.1112566,58450.0,58449.0,0.072871]
[1723690558322,0.1112566,58450.0,58449.0,0.061871]
[1723690558535,0.0002566,58450.0,58449.0,0.065871]
[1723690558733,0.0012566,58450.0,58449.0,0.07900657]
[1723690561024,6e-07,58450.0,58449.0,1.11202857]
[1723690561228,0.06803051,58459.0,58449.0,1.44745069]
[1723690561429,0.06803051,58459.0,58457.0,0.2365]
[1723690561627,0.33448771,58470.0,58465.0,0.059855]
[1723690561832,0.199851,58470.0,58465.0,0.059855]
[1723690562038,0.199851,58470.0,58458.0,0.4663]
[1723690562039,0.199851,58470.0,58466.0,0.059854]
[1723690562245,0.21112167,58470.0,58466.0,0.059854]
[1723690562542,0.14,58470.0,58469.0,0.059851]
[1723690562734,0.152,58470.0,58469.0,0.059851]
[1723690564232,0.145,58470.0,58469.0,0.060851]
[1723690564438,0.158,58470.0,58469.0,0.060851]
[1723690565035,0.157,58470.0,58469.0,0.060851]
[1723690572438,0.017,58470.0,58469.0,0.872102]
[1723690572944,0.107,58470.0,58469.0,0.872102]
[1723690575349,0.017,58470.0,58469.0,0.872102]
[1723690575552,0.017,58470.0,58469.0,1.030902]
[1723690577050,0.117,58470.0,58469.0,0.421651]
[1723690577247,0.117,58470.0,58469.0,0.060851]
[1723690591854,0.117,58470.0,58469.0,0.120702]
[1723690592049,0.117,58470.0,58469.0,0.74290109]
[1723690592260,0.117,58470.0,58469.0,0.90200109]
[1723690592863,0.117,58470.0,58469.0,0.90191035]
[1723690595658,0.117,58470.0,58469.0,0.38883035]
[1723690596256,0.117,58470.0,58469.0,0.74963035]
[1723690597665,0.17685,58470.0,58469.0,0.11002835]
[1723690597959,0.059851,58469.0,58468.0,0.10166558]
[1723690598167,0.723751,58469.0,58468.0,0.10166558]
[1723690598364,1.236831,58469.0,58468.0,0.10166558]
[1723690598572,0.723751,58469.0,58468.0,0.10166558]
[1723690598771,0.6639,58469.0,58468.0,0.10166558]
[1723690599363,0.6689,58469.0,58468.0,0.10266558]
[1723690600259,0.0002566,58473.0,58468.0,1.33354416]
[1723690600566,0.0002566,58473.0,58472.0,0.420648]
[1723690602473,0.0012566,58473.0,58472.0,0.420648]
[1723690603263,0.0002566,58473.0,58472.0,0.67871769]
[1723690603464,0.0002566,58473.0,58472.0,1.59179769]
[1723690605672,0.0002566,58473.0,58472.0,1.65164569]
[1723690606166,0.0002566,58473.0,58472.0,1.91762841]
[1723690606374,6e-07,58473.0,58472.0,1.91762841]
[1723690606772,6e-07,58473.0,58472.0,1.91761191]
[1723690610073,6e-07,58473.0,58472.0,1.55681191]
[1723690610467,6e-07,58473.0,58472.0,2.27841191]
[1723690610868,0.0900006,58473.0,58472.0,1.03951769]
[1723690611069,0.4508006,58473.0,58472.0,0.059848]
[1723690611268,0.0900006,58473.0,58472.0,0.059848]
[1723690617682,0.0900006,58473.0,58472.0,0.38360667]
[1723690617887,0.0900006,58473.0,58472.0,0.31587778]
[1723690621591,0.0900006,58473.0,58472.0,0.059848]
[1723690625297,0.0900006,58473.0,58472.0,0.31670716]
[1723690625495,0.0900006,58473.0,58472.0,0.059848]
[1723690626497,0.6030806,58473.0,58472.0,0.059848]
[1723690626691,0.0900006,58473.0,58472.0,0.059848]
[1723690629504,0.059848,58472.0,58471.0,0.06775203]
[1723690629693,0.059848,58472.0,58469.0,0.3608]
[1723690629694,0.059856,58464.0,58463.0,0.17531267]
[1723690629888,0.15,58464.0,58463.0,0.23516967]
[1723690631201,0.151,58464.0,58463.0,0.24716967]
[1723690631795,0.059867,58453.0,58442.0,0.1524455]
[1723690632003,0.420678,58443.0,58442.0,0.08631721]
[1723690632301,0.5308,58443.0,58433.0,0.01121296]
[1723690632501,0.5308,58443.0,58432.0,0.29658698]
[1723690632889,0.5310566,58443.0,58439.0,0.059881]
[1723690633489,0.5310566,58443.0,58440.0,0.059881]
[1723690633689,0.5310566,58443.0,58442.0,0.059879]
[1723690634402,0.5320566,58443.0,58442.0,0.059879]
[1723690634604,0.5320566,58443.0,58442.0,0.073879]
[1723690634798,0.5320566,58443.0,58442.0,0.086879]
[1723690636506,0.1712566,58443.0,58442.0,0.086879]
[1723690647414,0.1712566,58443.0,58442.0,0.027]
[1723690647606,0.2311346,58443.0,58442.0,0.027]
[1723690647802,0.24216686,58443.0,58442.0,0.027]
[1723690648203,0.1712566,58443.0,58442.0,0.086879]
[1723690649308,0.1712566,58443.0,58442.0,0.0980685]
[1723690649916,0.1712566,58443.0,58442.0,0.0840685]
[1723690650215,0.1712566,58443.0,58442.0,0.0890685]
[1723690650809,0.1702566,58443.0,58442.0,0.0760685]
[1723690651118,0.1712566,58443.0,58442.0,0.0770685]
[1723690655516,0.1712566,58443.0,58442.0,0.065879]
[1723690656221,0.2311346,58443.0,58442.0,0.006]
[1723690657119,0.6518126,58443.0,58442.0,0.006]
[1723690657316,1.5052546,58443.0,58442.0,0.006]
[1723690657518,1.5651326,58443.0,58442.0,0.006]
[1723690659419,1.5052546,58443.0,58442.0,0.006]
[1723690659625,1.1052546,58443.0,58442.0,0.006]
[1723690659812,1.5052546,58443.0,58442.0,0.006]
[1723690660007,1.5062546,58443.0,58442.0,0.001]
[1723690660212,1.1062546,58443.0,58442.0,0.001]
[1723690660413,1.5062546,58443.0,58442.0,0.001]
[1723690660615,1.4463766,58443.0,58432.0,0.0601456]
[1723690660812,0.3608,58436.0,58432.0,0.0601456]
[1723690661017,0.5308,58436.0,58433.0,0.059887]
[1723690661221,0.5308,58436.0,58432.0,0.0002566]
[1723690661523,0.17,58436.0,58432.0,0.1019165]
[1723690661721,0.17,58436.0,58435.0,0.059886]
[1723690662222,0.17,58436.0,58435.0,0.1615459]
[1723690662810,0.17,58436.0,58435.0,0.1728716]
[1723690663216,0.17,58436.0,58435.0,0.4093716]
[1723690663518,0.3620566,58443.0,58442.0,0.059879]
[1723690663717,0.5120566,58443.0,58442.0,0.059879]
[1723690663917,0.5110566,58443.0,58442.0,0.059879]
[1723690665525,0.5110566,58443.0,58442.0,0.064879]
[1723690666324,0.5110566,58443.0,58442.0,0.059879]
[1723690666622,0.5110566,58443.0,58442.0,0.062879]
[1723690674126,0.5709346,58443.0,58442.0,0.003]
[1723690674431,0.5110566,58443.0,58442.0,0.062879]
[1723690677024,0.5110566,58443.0,58442.0,0.11388373]
[1723690677523,0.57940957,58443.0,58442.0,0.11388373]
[1723690677830,0.5110566,58443.0,58442.0,0.062879]
[1723690678524,0.1502566,58443.0,58442.0,0.062879]
[1723690679330,0.1502566,58443.0,58442.0,0.1645389]
[1723690679834,0.21860957,58443.0,58442.0,0.2155722]
[1723690680129,0.21860957,58443.0,58442.0,0.1645389]
[1723690680329,0.21860957,58443.0,58442.0,0.11391047]
[1723690682234,0.21860957,58443.0,58442.0,0.062879]
[1723690684031,0.21860957,58443.0,58442.0,0.11393256]
[1723690684432,0.21860957,58443.0,58442.0,0.062879]
[1723690685036,0.21860957,58443.0,58442.0,0.11394857]
[1723690685331,0.21860957,58443.0,58442.0,0.11394879]
[1723690685528,0.21860957,58443.0,58442.0,0.062879]
[1723690687338,0.1502566,58443.0,58442.0,0.11396196]
[1723690687530,0.1502566,58443.0,58442.0,0.062879]
[1723690690532,1.1234546,58443.0,58437.0,0.14496502]
[1723690690740,0.5973,58438.0,58434.0,0.10128269]
[1723690691036,0.5208,58438.0,58437.0,0.059884]
[1723690691426,0.5208,58438.0,58437.0,0.1615439]
[1723690691821,0.161,58438.0,58437.0,0.1615439]
[1723690692232,0.161,58438.0,58437.0,0.41674747]
[1723690692430,0.16,58438.0,58437.0,0.1695439]
[1723690692632,0.161,58438.0,58437.0,0.1705439]
[1723690695240,0.161,58438.0,58437.0,0.42835702]
[1723690695439,0.161,58438.0,58437.0,0.69452356]
[1723690695743,0.161,58438.0,58437.0,0.70552419]
[1723690696633,0.161,58438.0,58437.0,0.43935765]
[1723690699137,0.161,58438.0,58437.0,0.53851462]
[1723690702531,0.2123098,58438.0,58437.0,0.53851462]
[1723690703337,0.6329928,58438.0,58437.0,0.009]
[1723690703636,1.56346401,58438.0,58437.0,0.06820557]
[1723690703942,0.059885,58436.0,58435.0,0.06820557]
[1723690704238,0.278296,58436.0,58435.0,0.06820557]
[1723690704435,0.278296,58436.0,58434.0,0.06820557]
[1723690704639,0.218411,58436.0,58434.0,0.06820557]
[1723690704835,0.218411,58436.0,58435.0,0.06820557]
[1723690705033,0.218411,58436.0,58435.0,0.01]
[1723690705235,0.219411,58436.0,58435.0,0.01]
[1723690705542,0.219411,58436.0,58435.0,0.07824203]
[1723690705838,0.219411,58436.0,58435.0,0.06824203]
[1723690706143,0.219411,58436.0,58435.0,0.059886]
[1723690706535,0.219411,58436.0,58435.0,0.12817444]
[1723690707346,0.15,58436.0,58435.0,0.12817444]
[1723690707545,0.151,58436.0,58435.0,0.12817444]
[1723690707942,0.16308016,58436.0,58435.0,0.13717444]
[1723690708247,0.22296516,58436.0,58435.0,0.07728844]
[1723690709438,0.22296516,58436.0,58435.0,0.009]
[1723690709844,0.73636516,58436.0,58435.0,0.009]
[1723690710540,0.059886,58435.0,58434.0,0.06828844]
[1723690710739,0.209886,58435.0,58434.0,0.06828844]
[1723690710940,0.059888,58434.0,58433.0,0.05126957]
[1723690711141,0.219888,58434.0,58433.0,0.05126957]
[1723690711542,0.059888,58433.0,58432.0,0.05151692]
[1723690711733,0.059891,58430.0,58428.0,0.05603604]
[1723690711930,0.3608,58429.0,58426.0,0.05603604]
[1723690712130,0.714392,58429.0,58428.0,0.05126089]
[1723690712543,0.059893,58428.0,58427.0,0.05126089]
[1723690712739,0.209893,58428.0,58426.0,0.05126089]
[1723690713133,0.119788,58427.0,58426.0,0.05126089]
[1723690713335,0.059897,58424.0,58423.0,0.01117027]
[1723690713534,0.199897,58424.0,58423.0,0.1016599]
[1723690714346,0.560697,58424.0,58423.0,0.1016599]
[1723690714837,0.562697,58424.0,58423.0,0.1016599]
[1723690715437,0.059898,58423.0,58422.0,0.0002566]
[1723690715639,0.229898,58423.0,58422.0,0.0002566]
[1723690716048,0.979918,58423.0,58422.0,0.0002566]
[1723690716249,1.379918,58423.0,58422.0,0.0002566]
[1723690716448,1.50368054,58423.0,58422.0,0.0002566]
[1723690717344,0.24076054,58423.0,58422.0,0.0002566]
[1723690717647,0.24176054,58423.0,58422.0,0.0002566]
[1723690718342,1.15528054,58423.0,58422.0,0.0002566]
[1723690718749,1.15628054,58423.0,58422.0,0.0072566]
[1723690719144,0.24276054,58423.0,58422.0,0.0072566]
[1723690720846,0.75628054,58423.0,58422.0,0.0072566]
[1723690721248,0.059913,58408.0,58392.0,0.3608]
[1723690721461,0.95166166,58408.0,58393.0,0.00863707]
[1723690721642,0.05992,58402.0,58393.0,0.00863707]
[1723690721839,0.3608,58399.0,58397.0,0.059924]
[1723690722043,0.5308,58399.0,58397.0,0.059924]
[1723690723950,0.3608,58398.0,58392.0,0.36460678]
[1723690724148,0.3608,58393.0,58392.0,0.46626668]
[1723690725555,0.3628,58398.0,58392.0,0.40633768]
[1723690725739,0.001,58393.0,58392.0,0.46626768]
[1723690726140,0.3618,58398.0,58397.0,0.059925]
[1723690726345,0.001,58398.0,58397.0,0.059925]
[1723690726545,0.00025684,58404.0,58403.0,0.059919]
[1723690726741,0.12025684,58404.0,58403.0,0.059919]
[1723690726957,0.12025684,58404.0,58403.0,0.1615789]
[1723690728053,0.12125684,58404.0,58403.0,0.1615789]
[1723690729446,0.12225684,58404.0,58403.0,0.1615789]
[1723690734955,0.12225684,58404.0,58403.0,0.8380744]
[1723690735253,0.00014866,58408.0,58407.0,0.059914]
[1723690735649,0.00014866,58408.0,58407.0,0.1615739]
[1723690736553,0.00114866,58408.0,58407.0,0.2224879]
[1723690736756,0.05094338,58424.0,58412.0,0.059909]
[1723690736951,0.16094338,58424.0,58423.0,0.059898]
[1723690737460,0.16094338,58424.0,58423.0,0.1615579]
[1723690737644,0.16094338,58424.0,58423.0,0.3010579]
[1723690737847,0.16108349,58424.0,58423.0,0.3010579]
[1723690738053,0.12114011,58424.0,58423.0,0.3010579]
[1723690739756,0.12614011,58424.0,58423.0,0.31309377]
[1723690740151,0.11514011,58424.0,58423.0,0.31309377]
[1723690740355,0.11914011,58424.0,58423.0,0.31309377]
[1723690742652,0.11914011,58424.0,58423.0,0.67389377]
[1723690743756,0.00025684,58429.0,58428.0,0.119786]
[1723690743959,0.00025684,58429.0,58428.0,0.480586]
[1723690744152,0.00025684,58429.0,58428.0,0.5223529]
[1723690744952,0.01025684,58429.0,58428.0,0.5223529]
[1723690745455,0.00025684,58429.0,58428.0,0.5223529]
[1723690745657,0.00125684,58429.0,58428.0,0.1625529]
[1723690746461,0.01225684,58429.0,58428.0,0.1635529]
[1723690747065,0.02225684,58429.0,58428.0,0.1635529]
[1723690747567,0.01125684,58429.0,58428.0,0.1625529]
[1723690747865,0.01225684,58429.0,58428.0,0.1705529]
[1723690749066,0.01225684,58429.0,58428.0,0.48776623]
[1723690749454,0.01225684,58429.0,58428.0,0.42787323]
[1723690750260,0.01225684,58429.0,58428.0,0.48776623]
[1723690750465,0.01225684,58429.0,58428.0,0.42787323]
[1723690750859,0.3608,58435.0,58434.0,0.059887]
[1723690751066,0.5208,58435.0,58434.0,0.059887]
[1723690751266,0.5208,58435.0,58434.0,0.1615469]
[1723690752753,0.5208,58435.0,58434.0,0.1645469]
[1723690753158,0.5208,58435.0,58434.0,0.2254339]
[1723690753666,0.5208,58435.0,58434.0,0.23616238]
[1723690753865,0.5208,58435.0,58434.0,0.43307326]
[1723690754261,0.16,58435.0,58434.0,0.43307326]
[1723690754461,0.16,58435.0,58434.0,0.49296026]
[1723690754668,0.16,58435.0,58434.0,0.43307326]
[1723690756363,0.16,58435.0,58434.0,0.07461548]
[1723690758463,0.5208,58435.0,58434.0,0.07461548]
[1723690760268,0.16,58435.0,58434.0,0.07461548]
[1723690760474,0.5208,58435.0,58434.0,0.07461548]
[1723690763874,0.5208,58435.0,58434.0,0.17627538]
[1723690770076,0.16,58435.0,58434.0,0.17627538]
[1723690770275,0.5208,58435.0,58434.0,0.17627538]
[1723690770678,0.16,58435.0,58434.0,0.17627538]
[1723690770879,0.5208,58435.0,58434.0,0.17627538]
[1723690771275,1.6707,58435.0,58416.0,0.059905]
[1723690771475,0.781499,58422.0,58412.0,0.13597447]
[1723690771686,0.941499,58422.0,58412.0,0.13597447]
[1723690772079,0.941499,58422.0,58413.0,0.01119346]
[1723690772275,0.059902,58419.0,58418.0,1e-08]
[1723690772478,0.446402,58419.0,58418.0,1e-08]
[1723690772686,0.959922,58419.0,58418.0,1e-08]
[1723690773391,0.96008356,58419.0,58418.0,0.00100001]
[1723690774893,0.44656356,58419.0,58418.0,0.00100001]
[1723690775087,0.96008356,58419.0,58418.0,0.00100001]
[1723690775288,0.97096497,58419.0,58418.0,0.00100001]
[1723690776380,0.45744497,58419.0,58418.0,0.00100001]
[1723690776789,0.81824497,58419.0,58418.0,0.00100001]
[1723690778274,0.58174497,58419.0,58418.0,0.00100001]
[1723690778484,0.52184297,58419.0,58418.0,0.00100001]
[1723690778990,0.52184297,58419.0,58418.0,0.06090301]
[1723690779579,0.58174497,58419.0,58418.0,0.00100001]
[1723690783482,0.51096156,58419.0,58418.0,0.06090301]
[1723690783989,0.15016156,58419.0,58418.0,0.06090301]
[1723690784883,0.15016156,58419.0,58418.0,0.17371794]
[1723690787094,0.3608,58423.0,58418.0,0.17371794]
[1723690787289,0.01,58423.0,58422.0,0.420699]
[1723690787491,0.00025684,58427.0,58426.0,0.059895]
[1723690787681,0.46105684,58427.0,58426.0,0.1615549]
[1723690788094,0.46111568,58427.0,58426.0,0.1615549]
[1723690788892,0.46811568,58427.0,58426.0,0.17242038]
[1723690789495,0.47611568,58427.0,58426.0,0.17342038]
[1723690789792,0.46911568,58427.0,58426.0,0.17342038]
[1723690790808,0.10831568,58427.0,58426.0,0.17342038]
[1723690790999,0.46911568,58427.0,58426.0,0.17342038]
[1723690791408,0.46111568,58427.0,58426.0,0.17242038]
[1723690791609,0.46311568,58427.0,58426.0,0.17242038]
[1723690793613,0.46311568,58427.0,58426.0,0.1615549]
[1723690797304,0.46311568,58427.0,58426.0,0.2961549]
[1723690797815,0.46311568,58427.0,58426.0,0.059895]
[1723690800012,0.46311568,58427.0,58426.0,0.1615549]
[1723690800213,0.46311568,58427.0,58426.0,0.1620549]
[1723690800415,0.00231568,58427.0,58426.0,0.6755349]
[1723690800614,0.05118077,58432.0,58431.0,0.05989]
[1723690800809,0.06118077,58432.0,58431.0,0.05989]
[1723690801014,0.06118077,58432.0,58431.0,0.1615499]
[1723690801215,0.06118077,58432.0,58431.0,0.48999075]
[1723690801516,0.06119173,58438.0,58431.0,1.19248481]
[1723690801517,0.01,58438.0,58431.0,1.19248481]
[1723690801712,0.00025684,58437.0,58434.0,0.06820042]
[1723690801917,0.02025684,58437.0,58436.0,0.059885]
[1723690802114,0.02025684,58437.0,58436.0,0.1615449]
[1723690802709,0.02025684,58437.0,58434.0,0.01076153]
[1723690802915,0.3608,58435.0,58431.0,0.20830042]
[1723690803215,0.421689,58432.0,58431.0,0.003]
[1723690803417,0.571689,58432.0,58431.0,0.003]
[1723690804120,0.5118,58432.0,58431.0,0.003]
[1723690804711,0.5108,58432.0,58430.0,0.06014684]
[1723690805618,0.5128,58432.0,58431.0,0.05989]
[1723690805817,0.56796008,58432.0,58431.0,0.05989]
[1723690806114,0.5148,58432.0,58431.0,0.05989]
[1723690806316,0.5158,58432.0,58431.0,0.2891499]
[1723690806818,0.5133,58432.0,58431.0,0.2891499]
[1723690807614,0.5093,58432.0,58431.0,0.2891499]
[1723690807812,0.5113,58432.0,58431.0,0.2891499]
[1723690808421,0.5103,58432.0,58431.0,0.2891499]
[1723690808622,0.5083,58432.0,58431.0,0.2901499]
[1723690808921,0.1475,58432.0,58431.0,0.2901499]
[1723690809111,0.1475,58432.0,58431.0,0.2891499]
[1723690809311,0.1475,58432.0,58431.0,0.05989]
[1723690809722,0.1495,58432.0,58431.0,0.05989]
[1723690810314,0.1495,58432.0,58431.0,0.1615499]
[1723690810515,0.1495,58432.0,58431.0,0.41845967]
[1723690810820,0.1495,58432.0,58431.0,0.54465967]
[1723690811312,0.1475,58432.0,58431.0,0.54465967]
[1723690811514,0.1495,58432.0,58431.0,0.54565967]
[1723690812113,0.1475,58432.0,58431.0,0.54465967]
[1723690812307,0.1485,58432.0,58431.0,0.007]
[1723690813810,0.1485,58432.0,58431.0,0.1086599]
[1723690814223,0.1485,58432.0,58431.0,0.007]
[1723690814816,0.1485,58432.0,58431.0,0.004]
[1723690815225,0.1485,58432.0,58430.0,0.06014784]
[1723690815424,0.1495,58432.0,58431.0,0.05989]
[1723690816124,0.1485,58432.0,58431.0,0.05989]
[1723690816322,0.1515,58432.0,58431.0,0.1615499]
[1723690817330,0.1515,58432.0,58431.0,0.05989]
[1723690817518,0.1505,58432.0,58431.0,0.05989]
[1723690817719,0.1475,58432.0,58431.0,0.05989]
[1723690818121,0.66294,58432.0,58431.0,0.05989]
[1723690818522,0.1495,58432.0,58431.0,0.05989]
[1723690818925,0.1475,58432.0,58431.0,0.05989]
[1723690819123,0.208389,58432.0,58431.0,0.05989]
[1723690819333,0.05989,58431.0,58430.0,0.00025684]
[1723690819540,0.20739,58431.0,58430.0,0.00025684]
[1723690820934,0.56819,58431.0,58430.0,0.00025684]
[1723690821528,0.57319,58431.0,58430.0,0.00025684]
[1723690822521,0.57719,58431.0,58430.0,0.06014784]
[1723690822718,0.5173,58431.0,58430.0,0.06014784]
[1723690823529,0.5173,58431.0,58430.0,0.16180774]
[1723690824334,0.5143,58431.0,58430.0,0.16180774]
[1723690824633,0.1515,58431.0,58430.0,0.16180774]
[1723690824833,0.1505,58431.0,58430.0,0.16180774]
[1723690825024,0.1505,58431.0,58430.0,0.16480774]
[1723690825219,0.1475,58431.0,58430.0,0.16480774]
[1723690825424,0.1475,58431.0,58430.0,0.16280774]
[1723690825830,0.1475,58431.0,58430.0,0.16580774]
[1723690826226,0.1475,58431.0,58430.0,0.16480774]
[1723690826624,0.1475,58431.0,58430.0,0.16780774]
[1723690827635,0.1475,58431.0,58430.0,0.16480774]
[1723690827935,0.1485,58431.0,58430.0,0.16780774]
[1723690828232,0.1485,58431.0,58430.0,0.16480774]
[1723690828424,0.1495,58431.0,58430.0,0.06014784]
[1723690828626,0.1495,58431.0,58430.0,0.06114784]
[1723690829333,0.1495,58431.0,58430.0,0.06414784]
[1723690829334,0.1475,58431.0,58430.0,0.06414784]
[1723690829730,0.5093,58431.0,58430.0,0.06614784]
[1723690830737,0.5093,58431.0,58430.0,0.16780774]
[1723690831035,0.1485,58431.0,58430.0,0.16780774]
[1723690831231,0.1485,58431.0,58430.0,0.16580774]
[1723690831435,0.1475,58431.0,58430.0,0.16580774]
[1723690832040,0.1475,58431.0,58430.0,0.16480774]
[1723690832329,0.1475,58431.0,58430.0,0.00425684]
[1723690833027,0.20739,58431.0,58430.0,0.00425684]
[1723690834825,0.20739,58431.0,58430.0,0.00325684]
[1723690835135,0.20739,58431.0,58430.0,0.00425684]
[1723690835334,0.27559981,58431.0,58430.0,0.00425684]
[1723690835530,0.28442633,58431.0,58430.0,0.00425684]
[1723690835736,0.28842633,58431.0,58430.0,0.00325684]
[1723690836226,0.16032652,58431.0,58425.0,0.06837726]
[1723690836422,0.420695,58426.0,58425.0,0.06837726]
[1723690836625,0.568195,58426.0,58425.0,0.06837726]
[1723690837023,1.081675,58426.0,58425.0,0.06837726]
[1723690838429,0.0599,58421.0,58420.0,0.06015684]
[1723690838629,0.5707,58421.0,58420.0,0.06015684]
[1723690839139,0.5108,58421.0,58420.0,0.06015684]
[1723690839336,0.5707,58421.0,58420.0,0.06015684]
[1723690839931,0.5707,58421.0,58420.0,0.00025684]
[1723690842527,0.059905,58416.0,58415.0,0.05123338]
[1723690842838,0.059907,58414.0,58413.0,0.05123338]
[1723690843138,0.059908,58413.0,58411.0,0.1367041]
[1723690843330,0.199908,58413.0,58410.0,0.05123338]